fUST/lending_fUST_20240409
["ID","MTS","AMOUNT","RATE_DAILY","PERIOD"]
[321995540,1712676924035,-500.0,0.00024657,2]
[321995541,1712676924059,-511.36,0.00024657,2]
[321995542,1712676924085,-500.0,0.00024657,2]
[321995543,1712676924110,-785.99,0.00024657,2]
[321995544,1712676924135,-500.0,0.00024657,2]
[321995545,1712676924161,-500.0,0.00024657,2]
[321995546,1712676924185,-500.0,0.00024657,2]
[321995547,1712676924210,-1888.03,0.00024657,2]
[321995548,1712676924234,-500.0,0.00024657,2]
[321995549,1712676924257,-500.0,0.00024657,2]
[321995550,1712676924281,-500.0,0.00024657,2]
[321995551,1712676924304,-500.0,0.00024657,2]
[321995552,1712676924328,-500.0,0.00024657,2]
[321995553,1712676924353,-194.70553114,0.00024657,2]
[321995554,1712676924378,-500.0,0.00024657,2]
[321995555,1712676924403,-500.0,0.00024657,2]
[321995556,1712676924432,-500.0,0.00024657,2]
[321995557,1712676924459,-8677.52,0.00024657,2]
[321995558,1712676924488,-500.0,0.00024657,2]
[321995559,1712676924514,-500.0,0.00024657,2]
[321995560,1712676924540,-500.0,0.00024657,2]
[321995561,1712676924564,-500.0,0.00024657,2]
[321995562,1712676924589,-500.0,0.00024657,2]
[321995563,1712676924615,-1311.33,0.00024657,2]
[321995564,1712676924643,-500.0,0.00024657,2]
[321995565,1712676924669,-500.0,0.00024657,2]
[321995566,1712676924692,-502.13067898,0.00024657,2]
[321995567,1712676924717,-406.8200688,0.00024657,2]
[321995568,1712676924743,-550.56537976,0.00024657,2]
[321995569,1712676924768,-500.0,0.00024657,2]
[321995570,1712676924910,-216.06397761,0.00024657,2]
[321995571,1712676924941,-3946.34,0.00024657,2]
[321995572,1712676924965,-500.0,0.00024657,2]
[321995573,1712676924989,-500.0,0.00024657,2]
[321995574,1712676925011,-2503.21,0.00024657,2]
[321995575,1712676925035,-500.0,0.00024657,2]
[321995576,1712676925059,-500.0,0.00024657,2]
[321995577,1712676925082,-507.16903718,0.00024657,2]
[321995578,1712676925106,-500.0,0.00024657,2]
[321995579,1712676925129,-564.47,0.00024657,2]
[321995580,1712676925152,-529.26,0.00024657,2]
[321995581,1712676925176,-500.0,0.00024657,2]
[321995582,1712676925198,-500.0,0.00024657,2]
[321995583,1712676925240,-500.0,0.00024657,2]
[321995584,1712676925268,-500.0,0.00024657,2]
[321995585,1712676925293,-500.0,0.00024657,2]
[321995586,1712676925319,-500.0,0.00024657,2]
[321995587,1712676925345,-500.0,0.00024657,2]
[321995588,1712676925372,-500.0,0.00024657,2]
[321995589,1712676925399,-403.24987524,0.00024657,2]
[321995590,1712676925430,-500.0,0.00024657,2]
[321995591,1712676925457,-500.0,0.00024657,2]
[321995592,1712676925483,-590.99,0.00024657,2]
[321995593,1712676925507,-500.0,0.00024657,2]
[321995594,1712676925531,-500.0,0.00024657,2]
[321995595,1712676925556,-500.0,0.00024657,2]
[321995596,1712676925580,-500.0,0.00024657,2]
[321995597,1712676925606,-504.15914635,0.00024657,2]
[321995598,1712676925634,-1573.53,0.00024657,2]
[321995599,1712676925662,-2378.73,0.00024657,2]
[321995600,1712676925685,-1335.88,0.00024657,2]
[321995601,1712676925710,-501.13499179,0.00024657,2]
[321995602,1712676925734,-500.0,0.00024657,2]
[321995603,1712676925758,-500.0,0.00024657,2]
[321995604,1712676925782,-500.0,0.00024657,2]
[321995605,1712676925806,-2337.76,0.00024657,2]
[321995606,1712676925829,-300.0,0.00024657,2]
[321995607,1712676925854,-500.0,0.00024657,2]
[321995608,1712676925878,-500.0,0.00024657,2]
[321995609,1712676925902,-584.5,0.00024657,2]
[321995610,1712676925928,-500.0,0.00024657,2]
[321995611,1712676925952,-500.0,0.00024657,2]
[321995612,1712676925975,-500.0,0.00024657,2]
[321995613,1712676925999,-500.0,0.00024657,2]
[321995614,1712676926022,-500.0,0.00024657,2]
[321995615,1712676926057,-4803.73,0.00024657,2]
[321995616,1712676926098,-500.0,0.00024657,2]
[321995617,1712676926128,-500.0,0.00024657,2]
[321995618,1712676926165,-500.0,0.00024657,2]
[321995619,1712676926199,-1261.36,0.00024657,2]
[321995620,1712676926231,-501.89563018,0.00024657,2]
[321995621,1712676926262,-500.0,0.00024657,2]
[321995622,1712676926293,-500.0,0.00024657,2]
[321995623,1712676926325,-500.0,0.00024657,2]
[321995624,1712676926353,-500.0,0.00024657,2]
[321995625,1712676926387,-500.0,0.00024657,2]
[321995626,1712676926423,-500.0,0.00024657,2]
[321995627,1712676926453,-500.0,0.00024657,2]
[321995628,1712676926485,-25951.48,0.00024657,2]
[321995629,1712676926517,-500.0,0.00024657,2]
[321995630,1712676926549,-4682.96,0.00024657,2]
[321995631,1712676926575,-500.0,0.00024657,2]
[321995632,1712676926607,-356.58231325,0.00024657,2]
[321995633,1712676926644,-500.0,0.00024657,2]
[321995634,1712676926674,-500.0,0.00024657,2]
[321995635,1712676926705,-500.0,0.00024657,2]
[321995636,1712676926738,-500.0,0.00024657,2]
[321995637,1712676926770,-500.0,0.00024657,2]
[321995638,1712676926799,-2505.52,0.00024657,2]
[321995639,1712676926831,-450.05138917,0.00024657,2]
[321995640,1712676926897,282.7345517,0.0002102,2]
[321995641,1712676926963,155.0,0.0002102,2]
[321995642,1712676927018,188.6336911,0.0002102,2]
[321995643,1712676927068,209.67628122,0.0002102,2]
[321995644,1712676927120,245.06916337,0.0002102,2]
[321995645,1712676927163,1087.22335945,0.0002102,2]
[321995646,1712676927215,303.81962515,0.0002102,2]
[321995647,1712676927387,886.79559656,0.0002102,2]
[321995648,1712676927670,1616.75713304,0.0002102,2]
[321995649,1712676927746,518.395,0.0002102,2]
[321995650,1712676927836,1963.97984376,0.0002102,2]
[321995651,1712676927908,617.07485229,0.0002102,2]
[321995652,1712676929996,464.56915927,0.0002102,2]
[321995653,1712676930031,282.31285316,0.0002102,2]
[321995654,1712676952385,155.12774901,0.0002102,2]
[321995655,1712676953486,220.72763319,0.0002102,2]
[321995656,1712676954552,690.88659412,0.0002102,2]
[321995657,1712676957221,314.26382309,0.0002102,2]
[321995658,1712676959719,254.56537463,0.0002102,2]
[321995659,1712676960389,214.46148999,0.0002102,2]
[321995660,1712676960927,190.27874603,0.0002102,2]
[321995661,1712676962228,156.46414225,0.0002102,2]
[321995662,1712676962550,16047.23018457,0.0002102,2]
[321995663,1712676965952,256.05037465,0.00019,2]
[321995664,1712676966483,384.88102707,0.0002102,2]
[321995665,1712676973286,314.26382309,0.0002102,2]
[321995666,1712676974283,214.46148999,0.0002102,2]
[321995667,1712676974506,690.88659412,0.0002102,2]
[321995668,1712676975691,254.56537463,0.0002102,2]
[321995669,1712676982467,12016.60019273,0.0002102,2]
[321995670,1712676988454,384.88102707,0.0002102,2]
[321995671,1712676991153,313.79836656,0.0002102,2]
[321995672,1712676994278,154.98450155,0.0002102,2]
[321995673,1712676994862,690.88659412,0.0002102,2]
[321995674,1712676995712,254.56537463,0.0002102,2]
[321995675,1712677012554,690.88659412,0.0002102,2]
[321995676,1712677014285,154.98450155,0.0002102,2]
[321995677,1712677015691,254.56537463,0.0002102,2]
[321995678,1712677032285,154.98450155,0.0002102,2]
[321995679,1712677032662,690.88659412,0.0002102,2]
[321995680,1712677033708,254.56537463,0.0002102,2]
[321995681,1712677050314,154.98450155,0.0002102,2]
[321995682,1712677050546,159.86249332,0.0002102,2]
[321995683,1712677053705,310.01522001,0.0002102,2]
[321995684,1712677066287,154.98450155,0.0002102,2]
[321995685,1712677082299,154.98450155,0.0002102,2]
[321995687,1712677106290,230.79983439,0.0002102,2]
[321995688,1712677172485,37974.37,0.00021,2]
[321995691,1712677433878,179.520202,0.00019819,2]
[321995692,1712677458906,24900.0,0.00020091,2]
[321995697,1712677516799,283.34484323,0.00020662,2]
[321995698,1712677518350,1064.877866,0.00020085,2]
[321995699,1712677544792,160.4037179,0.00020081,2]
[321995700,1712677580984,771.42906463,0.00020959,2]
[321995701,1712677611442,4200.282583,0.00020057,2]
[321995703,1712677648164,-435.73017158,0.00021049,2]
[321995704,1712677663984,177.81803112,0.00020987,2]
[321995705,1712677686143,252.3162382,0.00020209,2]
[321995706,1712677689239,237.14597222,0.00015787,2]
[321995709,1712677763143,-407.69592082,0.00021034,2]
[321995710,1712677763164,-282.7345517,0.00021034,2]
[321995711,1712677763185,-868.54910044,0.00021034,2]
[321995712,1712677763327,-546.04585195,0.00021034,2]
[321995713,1712677763346,-240.67684413,0.00021034,2]
[321995714,1712677763367,-936.13344748,0.00021035,2]
[321995715,1712677763388,-19135.52113988,0.00021035,2]
[321995716,1712677763408,-181.0288212,0.00021036,2]
[321995717,1712677763428,-2520.62299494,0.00021036,2]
[321995718,1712677763448,-1087.22335945,0.00021036,2]
[321995719,1712677763468,-689.18078323,0.00021037,2]
[321995720,1712677763488,-154.98450155,0.00021037,2]
[321995721,1712677763509,-22688.17663668,0.00021037,2]
[321995726,1712677799069,213.8523888,0.00020095,2]
[321995727,1712677806474,250.0,0.00020044,2]
[321996126,1712677838106,-1713.54986641,0.00021029,2]
[321996127,1712677838269,-407.60250177,0.00021029,2]
[321996128,1712677838279,-240.67684413,0.00021029,2]
[321996129,1712677838288,-78.6006541,0.00021029,2]
[321996130,1712677838300,-128.63976291,0.00021029,2]
[321996131,1712677838309,-146.12858451,0.0002103,2]
[321996132,1712677838471,-1605.62406774,0.0002103,2]
[321996133,1712677838483,-1013.12488908,0.0002103,2]
[321996134,1712677838493,-22745.90339692,0.00021031,2]
[321996135,1712677838503,-541.65863879,0.00021031,2]
[321996136,1712677838512,-500.0,0.00021031,2]
[321996137,1712677838522,-231.0355127,0.00021031,2]
[321996138,1712677838532,-300.0,0.00021031,2]
[321996139,1712677838541,-300.0,0.00021031,2]
[321996140,1712677838550,-303.81962515,0.00021032,2]
[321996141,1712677838559,-562.79218199,0.00021032,2]
[321996142,1712677838568,-1866.00896233,0.00021032,2]
[321996143,1712677838579,-47598.75820091,0.00021032,2]
[321996144,1712677838588,-1307.52332084,0.00021033,2]
[321996145,1712677838598,-1963.97984376,0.00021033,2]
[321996146,1712677838607,-5818.79412695,0.00021034,2]
[321996147,1712677838616,-6908.40313979,0.00021034,2]
[321996148,1712677838625,-6908.40313979,0.00021034,2]
[321996149,1712677838633,-401.2298098,0.00021037,2]
[321996150,1712677838643,-221.63830907,0.00021037,2]
[321996151,1712677838652,-301.18050424,0.00021037,2]
[321996152,1712677838661,-176.93993972,0.00021037,2]
[321996153,1712677838671,-16627.67516242,0.00021037,2]
[321996154,1712677838680,-517.51701678,0.00021037,2]
[321996155,1712677838690,-407.69592082,0.00021037,2]
[321996156,1712677838699,-1087.22335945,0.00021037,2]
[321996157,1712677838709,-158.93894866,0.00021037,2]
[321996158,1712677838718,-936.13344748,0.00021037,2]
[321996160,1712677838727,-330.61774415,0.00021044,2]
[321996162,1712677838737,-25101.33714844,0.00021044,2]
[321996164,1712677838747,-1461.8835532,0.00021044,2]
[321996166,1712677838756,-1042.91596156,0.00021063,2]
[321996167,1712677838765,-192.98813141,0.00021084,2]
[321996169,1712677838774,-177.49784862,0.00021084,2]
[321996171,1712677838783,-435.73017158,0.00021084,2]
[321996173,1712677838792,-638.05192735,0.00022,2]
[321996175,1712677838801,-158.51515046,0.00022102,2]
[321996177,1712677838810,-159.0641477,0.00022103,2]
[321996179,1712677838819,-3718.21894048,0.00022189,2]
[321996181,1712677838830,-579.21156351,0.0002219,2]
[321996183,1712677838840,-154.98450155,0.00022208,2]
[321996185,1712677838853,-159.06414763,0.00022298,2]
[321996187,1712677838862,-159.06414763,0.00022493,2]
[321996189,1712677838871,-790.74086148,0.00022557,2]
[321996191,1712677838881,-159.06414763,0.00022688,2]
[321996193,1712677838891,-420.0,0.00022876,2]
[321996195,1712677838900,-159.06414763,0.00022882,2]
[321996196,1712677838909,-177.81803112,0.00022909,2]
[321996198,1712677838918,-242.74204017,0.00023,2]
[321996200,1712677838927,-159.06414763,0.00023077,2]
[321996203,1712677838937,-420.0,0.00023134,2]
[321996204,1712677838949,-2438.36308409,0.00023152,2]
[321996206,1712677838958,-154.98450155,0.00023152,2]
[321996208,1712677838968,-15618.15262269,0.00023153,2]
[321996210,1712677838977,-159.06414763,0.00023272,2]
[321996212,1712677838986,-171.333637,0.00023288,2]
[321996214,1712677838995,-1167.64878825,0.0002336,2]
[321996216,1712677839004,-170.710276,0.00023443,2]
[321996218,1712677839012,-159.06414763,0.00023467,2]
[321996220,1712677839022,-159.06414763,0.00023662,2]
[321996222,1712677839031,-159.06414763,0.00023857,2]
[321996224,1712677839042,-159.06414763,0.00024052,2]
[321996226,1712677839051,-159.06414763,0.00024246,2]
[321996228,1712677839060,-159.06414763,0.00024441,2]
[321996230,1712677839071,-647.38243941,0.00024528,2]
[321996233,1712677839082,-2000.0,0.00024557,2]
[321996235,1712677839091,-159.06414763,0.00024636,2]
[321996237,1712677839101,-154.99704819,0.00024654,2]
[321996239,1712677839110,-784.11100544,0.00024655,2]
[321996241,1712677839119,-500.0,0.00024657,2]
[321996243,1712677839128,-503.73532672,0.00024657,2]
[321996245,1712677839138,-500.0,0.00024657,2]
[321996247,1712677839147,-500.0,0.00024657,2]
[321996249,1712677839156,-502.34184716,0.00024657,2]
[321996251,1712677839165,-155.07598723,0.00024657,2]
[321996253,1712677839174,-500.0,0.00024657,2]
[321996255,1712677839183,-500.0,0.00024657,2]
[321996257,1712677839193,-500.0,0.00024657,2]
[321996259,1712677839202,-500.0,0.00024657,2]
[321996260,1712677839211,-500.0,0.00024657,2]
[321996262,1712677839220,-500.0,0.00024657,2]
[321996264,1712677839229,-501.32324898,0.00024657,2]
[321996265,1712677839239,-536.17016406,0.00024657,2]
[321996266,1712677839248,-500.0,0.00024657,2]
[321996267,1712677839257,-697.48,0.00024657,2]
[321996268,1712677839266,-151.0,0.00024657,2]
[321996269,1712677839275,-500.0,0.00024657,2]
[321996270,1712677839285,-500.0,0.00024657,2]
[321996271,1712677839294,-500.0,0.00024657,2]
[321996272,1712677839304,-1235.03,0.00024657,2]
[321996274,1712677839311,-500.0,0.00024657,2]
[321996276,1712677839320,-500.0,0.00024657,2]
[321996278,1712677839331,-345.13369233,0.00024657,2]
[321996280,1712677839341,-500.0,0.00024657,2]
[321996282,1712677839349,-247.55776255,0.00024657,2]
[321996284,1712677839359,-500.0,0.00024657,2]
[321996286,1712677839368,-500.0,0.00024657,2]
[321996288,1712677839377,-500.0,0.00024657,2]
[321996290,1712677839386,-500.81267653,0.00024657,2]
[321996292,1712677839396,-600.0,0.00024657,2]
[321996294,1712677839405,-509.89917167,0.00024657,2]
[321996296,1712677839415,-500.0,0.00024657,2]
[321996298,1712677839424,-500.0,0.00024657,2]
[321996301,1712677839434,-500.0,0.00024657,2]
[321996304,1712677839443,-500.0,0.00024657,2]
[321996307,1712677839453,-500.0,0.00024657,2]
[321996309,1712677839465,-500.0,0.00024657,2]
[321996311,1712677839474,-500.0,0.00024657,2]
[321996313,1712677839483,-500.0,0.00024657,2]
[321996315,1712677839493,-500.0,0.00024657,2]
[321996317,1712677839502,-500.0,0.00024657,2]
[321996319,1712677839511,-500.0,0.00024657,2]
[321996320,1712677839520,-500.0,0.00024657,2]
[321996321,1712677839530,-500.0,0.00024657,2]
[321996322,1712677839539,-500.0,0.00024657,2]
[321996323,1712677839548,-500.0,0.00024657,2]
[321996324,1712677839557,-500.0,0.00024657,2]
[321996325,1712677839566,-500.0,0.00024657,2]
[321996326,1712677839576,-500.0,0.00024657,2]
[321996327,1712677839587,-500.0,0.00024657,2]
[321996329,1712677839596,-500.0,0.00024657,2]
[321996330,1712677839606,-500.0,0.00024657,2]
[321996332,1712677839615,-500.0,0.00024657,2]
[321996333,1712677839624,-500.0,0.00024657,2]
[321996334,1712677839633,-501.01374739,0.00024657,2]
[321996335,1712677839643,-506.28946276,0.00024657,2]
[321996336,1712677839652,-500.0,0.00024657,2]
[321996337,1712677839661,-500.0,0.00024657,2]
[321996338,1712677839670,-500.0,0.00024657,2]
[321996339,1712677839679,-500.0,0.00024657,2]
[321996340,1712677839689,-500.0,0.00024657,2]
[321996341,1712677839698,-500.0,0.00024657,2]
[321996342,1712677839707,-500.0,0.00024657,2]
[321996343,1712677839811,-639.69385496,0.00024657,2]
[321996344,1712677839821,-500.0,0.00024657,2]
[321996345,1712677839833,-500.0,0.00024657,2]
[321996346,1712677839842,-500.0,0.00024657,2]
[321996347,1712677839852,-500.0,0.00024657,2]
[321996348,1712677839863,-500.0,0.00024657,2]
[321996349,1712677839875,-500.0,0.00024657,2]
[321996350,1712677839884,-500.0,0.00024657,2]
[321996351,1712677839894,-500.0,0.00024657,2]
[321996352,1712677839903,-800.47,0.00024657,2]
[321996353,1712677839912,-500.0,0.00024657,2]
[321996354,1712677839921,-500.0,0.00024657,2]
[321996355,1712677839930,-460.4420057,0.00024657,2]
[321996356,1712677839941,-592.96352232,0.00024657,2]
[321996357,1712677839951,-500.0,0.00024657,2]
[321996358,1712677839960,-500.0,0.00024657,2]
[321996359,1712677839969,-500.0,0.00024657,2]
[321996360,1712677839978,-500.0,0.00024657,2]
[321996361,1712677839987,-500.0,0.00024657,2]
[321996362,1712677839996,-502.82656281,0.00024657,2]
[321996363,1712677840005,-2043.97,0.00024657,2]
[321996364,1712677840015,-500.0,0.00024657,2]
[321996365,1712677840024,-500.0,0.00024657,2]
[321996366,1712677840035,-1181.94,0.00024657,2]
[321996367,1712677840044,-500.0,0.00024657,2]
[321996368,1712677840053,-500.0,0.00024657,2]
[321996369,1712677840062,-569.99,0.00024657,2]
[321996370,1712677840071,-804.12,0.00024657,2]
[321996371,1712677840082,-500.0,0.00024657,2]
[321996372,1712677840091,-500.32403526,0.00024657,2]
[321996373,1712677840100,-500.0,0.00024657,2]
[321996374,1712677840109,-500.0,0.00024657,2]
[321996375,1712677840119,-500.0,0.00024657,2]
[321996377,1712677840128,-500.0,0.00024657,2]
[321996379,1712677840137,-500.0,0.00024657,2]
[321996381,1712677840147,-235.19065073,0.00024657,2]
[321996383,1712677840156,-500.0,0.00024657,2]
[321996384,1712677840165,-500.0,0.00024657,2]
[321996385,1712677840174,-4244.77,0.00024657,2]
[321996387,1712677840184,-500.0,0.00024657,2]
[321996389,1712677840196,-177.93681245,0.00024657,2]
[321996391,1712677840205,-500.0,0.00024657,2]
[321996393,1712677840215,-500.0,0.00024657,2]
[321996395,1712677840225,-500.0,0.00024657,2]
[321996397,1712677840235,-500.0,0.00024657,2]
[321996399,1712677840244,-2692.54,0.00024657,2]
[321996401,1712677840254,-500.0,0.00024657,2]
[321996402,1712677840263,-501.33495662,0.00024657,2]
[321996403,1712677840272,-500.0,0.00024657,2]
[321996404,1712677840281,-814.22,0.00024657,2]
[321996405,1712677840290,-500.0,0.00024657,2]
[321996406,1712677840300,-500.82046413,0.00024657,2]
[321996407,1712677840310,-501.33415078,0.00024657,2]
[321996408,1712677840319,-500.0,0.00024657,2]
[321996409,1712677840329,-500.0,0.00024657,2]
[321996410,1712677840339,-500.0,0.00024657,2]
[321996411,1712677840348,-500.0,0.00024657,2]
[321996412,1712677840357,-500.0,0.00024657,2]
[321996413,1712677840366,-500.0,0.00024657,2]
[321996414,1712677840375,-500.0,0.00024657,2]
[321996415,1712677840385,-500.0,0.00024657,2]
[321996416,1712677840394,-500.0,0.00024657,2]
[321996417,1712677840404,-500.0,0.00024657,2]
[321996418,1712677840413,-500.0,0.00024657,2]
[321996419,1712677840422,-531.41,0.00024657,2]
[321996420,1712677840431,-500.0,0.00024657,2]
[321996421,1712677840440,-501.57523464,0.00024657,2]
[321996422,1712677840449,-335.53211817,0.00024657,2]
[321996423,1712677840458,-502.4452704,0.00024657,2]
[321996424,1712677840467,-591.16,0.00024657,2]
[321996425,1712677840477,-500.0,0.00024657,2]
[321996426,1712677840487,-619.39645854,0.00024657,2]
[321996427,1712677840496,-1213.06,0.00024657,2]
[321996428,1712677840505,-500.0,0.00024657,2]
[321996429,1712677840515,-500.0,0.00024657,2]
[321996430,1712677840523,-522.42007486,0.00024657,2]
[321996431,1712677840533,-500.0,0.00024657,2]
[321996432,1712677840542,-500.0,0.00024657,2]
[321996433,1712677840551,-537.34301772,0.00024657,2]
[321996434,1712677840563,-500.0,0.00024657,2]
[321996435,1712677840574,-500.0,0.00024657,2]
[321996436,1712677840586,-500.0,0.00024657,2]
[321996437,1712677840595,-505.24,0.00024657,2]
[321996438,1712677840604,-500.0,0.00024657,2]
[321996439,1712677840613,-414.02794365,0.00024657,2]
[321996440,1712677840622,-500.0,0.00024657,2]
[321996441,1712677840631,-500.0,0.00024657,2]
[321996442,1712677840640,-500.0,0.00024657,2]
[321996443,1712677840650,-742.92,0.00024657,2]
[321996444,1712677840660,-500.0,0.00024657,2]
[321996445,1712677840669,-501.46231694,0.00024657,2]
[321996446,1712677840678,-500.0,0.00024657,2]
[321996447,1712677840687,-374.61535197,0.00024657,2]
[321996448,1712677840697,-500.0,0.00024657,2]
[321996449,1712677840706,-500.0,0.00024657,2]
[321996450,1712677840716,-500.0,0.00024657,2]
[321996451,1712677840725,-500.0,0.00024657,2]
[321996452,1712677840735,-503.97053309,0.00024657,2]
[321996453,1712677840745,-500.0,0.00024657,2]
[321996454,1712677840755,-500.0,0.00024657,2]
[321996455,1712677840765,-500.0,0.00024657,2]
[321996456,1712677840775,-1494.44,0.00024657,2]
[321996457,1712677840785,-502.09778527,0.00024657,2]
[321996458,1712677840794,-501.14359459,0.00024657,2]
[321996459,1712677840806,-500.0,0.00024657,2]
[321996460,1712677840821,-500.0,0.00024657,2]
[321996461,1712677840835,-500.0,0.00024657,2]
[321996462,1712677840853,-1706.2,0.00024657,2]
[321996463,1712677840867,-505.51089623,0.00024657,2]
[321996464,1712677840878,-658.6,0.00024657,2]
[321996465,1712677840894,-500.0,0.00024657,2]
[321996466,1712677840908,-500.0,0.00024657,2]
[321996467,1712677840922,-520.36689179,0.00024657,2]
[321996468,1712677840936,-312.19784353,0.00024657,2]
[321996469,1712677840948,-500.0,0.00024657,2]
[321996470,1712677840961,-501.33888658,0.00024657,2]
[321996471,1712677840973,-500.0,0.00024657,2]
[321996472,1712677840985,-500.0,0.00024657,2]
[321996473,1712677840997,-696.6,0.00024657,2]
[321996474,1712677841010,-500.0,0.00024657,2]
[321996475,1712677841023,-502.01498888,0.00024657,2]
[321996476,1712677841036,-500.0,0.00024657,2]
[321996477,1712677841049,-500.0,0.00024657,2]
[321996478,1712677841060,-500.0,0.00024657,2]
[321996479,1712677841070,-756.27,0.00024657,2]
[321996480,1712677841087,-962.13,0.00024657,2]
[321996481,1712677841099,-4582.06,0.00024657,2]
[321996482,1712677841112,-500.0,0.00024657,2]
[321996483,1712677841123,-267.00492922,0.00024657,2]
[321996484,1712677841135,-500.0,0.00024657,2]
[321996485,1712677841148,-500.0,0.00024657,2]
[321996486,1712677841159,-500.0,0.00024657,2]
[321996487,1712677841171,-500.0,0.00024657,2]
[321996488,1712677841186,-500.0,0.00024657,2]
[321996489,1712677841201,-548.06806477,0.00024657,2]
[321996490,1712677841214,-500.0,0.00024657,2]
[321996491,1712677841227,-2542.12,0.00024657,2]
[321996492,1712677841238,-500.0,0.00024657,2]
[321996493,1712677841248,-500.0,0.00024657,2]
[321996494,1712677841259,-8260.17,0.00024657,2]
[321996495,1712677841271,-500.57395353,0.00024657,2]
[321996496,1712677841284,-505.60819055,0.00024657,2]
[321996497,1712677841295,-500.0,0.00024657,2]
[321996498,1712677841307,-500.0,0.00024657,2]
[321996499,1712677841318,-512.33534483,0.00024657,2]
[321996500,1712677841332,-500.0,0.00024657,2]
[321996501,1712677841342,-500.0,0.00024657,2]
[321996502,1712677841353,-500.0,0.00024657,2]
[321996503,1712677841364,-500.0,0.00024657,2]
[321996504,1712677841375,-2683.7,0.00024657,2]
[321996505,1712677841386,-565.49,0.00024657,2]
[321996506,1712677841398,-500.0,0.00024657,2]
[321996507,1712677841409,-500.0,0.00024657,2]
[321996508,1712677841421,-500.0,0.00024657,2]
[321996509,1712677841433,-500.0,0.00024657,2]
[321996510,1712677841444,-25207.97,0.00024657,2]
[321996511,1712677841457,-430.06899563,0.00024657,2]
[321996512,1712677841468,-500.0,0.00024657,2]
[321996513,1712677841480,-500.0,0.00024657,2]
[321996514,1712677841491,-500.0,0.00024657,2]
[321996515,1712677841502,-4224.87,0.00024657,2]
[321996516,1712677841514,-823.27,0.00024657,2]
[321996517,1712677841525,-500.0,0.00024657,2]
[321996518,1712677841536,-500.0,0.00024657,2]
[321996519,1712677841547,-500.0,0.00024657,2]
[321996520,1712677841558,-500.0,0.00024657,2]
[321996521,1712677841569,-500.0,0.00024657,2]
[321996522,1712677841582,-500.75214191,0.00024657,2]
[321996523,1712677841593,-500.0,0.00024657,2]
[321996524,1712677841604,-502.2860714,0.00024657,2]
[321996525,1712677841615,-2878.18,0.00024657,2]
[321996526,1712677841626,-617.19848953,0.00024657,2]
[321996527,1712677841637,-500.0,0.00024657,2]
[321996528,1712677841649,-7969.46,0.00024657,2]
[321996529,1712677841660,-500.0,0.00024657,2]
[321996530,1712677841671,-402.73779313,0.00024657,2]
[321996531,1712677841683,-500.0,0.00024657,2]
[321996532,1712677841695,-500.0,0.00024657,2]
[321996533,1712677841706,-500.0,0.00024657,2]
[321996534,1712677841718,-500.0,0.00024657,2]
[321996535,1712677841729,-500.0,0.00024657,2]
[321996536,1712677841741,-500.0,0.00024657,2]
[321996537,1712677841752,-425.03992078,0.00024657,2]
[321996538,1712677841762,-500.0,0.00024657,2]
[321996539,1712677841773,-500.0,0.00024657,2]
[321996540,1712677841785,-505.83584251,0.00024657,2]
[321996541,1712677841796,-500.0,0.00024657,2]
[321996542,1712677841808,-7891.96,0.00024657,2]